Workbook

Sheet 到镇汇总表
A1: 2025年君山区耕地地力保护补贴面积及资金汇总表
A2: 制表单位：君山区农业农村局 单位：亩、元
A3: 单 位 | B3: 补贴农 户数 | C3: 耕地地力补贴（标准104元/亩） | I3: 地力补贴结余用于双季稻补贴(标准130元/亩) | O3: 地力补贴 双季稻补贴 资金合计 | P3: 其中 一卡通 | Q3: 其中 对公帐户
C4: 耕地面积 到户 | D4: 补贴金额（一卡通） | E4: 未确权集体耕地面积 | F4: 补贴金额（对公） | G4: 耕地补贴总面积 | H4: 耕地补贴总金额 | I4: 双季稻种植到户面积 | J4: 补贴金额（一卡通） | K4: 双季稻种植对公面积 | L4: 补贴金额（对公） | M4: 双季稻补贴总面积 | N4: 双季稻补贴资金
A5: 广兴洲镇 | B5: 7546 | C5: 61813.46 | D5: =C5*104 -> 6428599.84 | E5: 4099.57 | F5: =E5*104 -> 426355.28 | G5: =E5+C5 -> 65913.03 | H5: =G5*104 -> 6854955.12 | I5: 4960.54 | J5: =I5*130 -> 644870.2 | K5: 360.7 | L5: =K5*130 -> 46891 | M5: =K5+I5 -> 5321.24 | N5: =M5*130 -> 691761.2 | O5: =H5+N5 -> 7546716.32 | P5: =D5+J5 -> 7073470.04 | Q5: =F5+L5 -> 473246.28
A6: 许市镇 | B6: 6653 | C6: 52216.73 | D6: =C6*104 -> 5430539.92 | E6: 2094.63 | F6: =E6*104 -> 217841.52 | G6: =E6+C6 -> 54311.36 | H6: =G6*104 -> 5648381.44 | I6: 11870.66 | J6: =I6*130 -> 1543185.8 | K6: 291.7 | L6: =K6*130 -> 37921 | M6: =K6+I6 -> 12162.36 | N6: =M6*130 -> 1581106.8 | O6: =H6+N6 -> 7229488.24 | P6: =D6+J6 -> 6973725.72 | Q6: =F6+L6 -> 255762.52
A7: 钱粮湖镇 | B7: 9062 | C7: 105019.32 | D7: 10922009.28 | E7: 9812.41 | F7: 1020490.64 | G7: 114831.73 | H7: 11942499.92 | I7: 16893.7 | J7: 2196181 | K7: 5538.8 | L7: 720044 | M7: 22432.5 | N7: 2916225 | O7: 14858724.92 | P7: 13118190.28 | Q7: 1740534.64
A8: 良心堡镇 | B8: 4739 | C8: 60786.32 | D8: 6321777.28 | E8: 7892.11 | F8: 820779.44 | G8: 68678.43 | H8: 7142556.72 | I8: 4200 | J8: 546000 | K8: 0 | L8: 0 | M8: 4200 | N8: 546000 | O8: 7688556.72 | P8: 6867777.28 | Q8: 820779.44
A9: 柳林洲 街道 | B9: 7694 | C9: 50201.8 | D9: 5220987.2 | E9: 11002.65 | F9: 1144275.6 | G9: 61204.45 | H9: 6365262.8 | I9: 4203.6 | J9: 546468 | K9: 0 | L9: 0 | M9: 4203.6 | N9: 546468 | O9: 6911730.8 | P9: 5767455.2 | Q9: 1144275.6
A10: 建新实业 | B10: / | C10: 0 | D10: 0 | E10: 35847.18 | F10: 3728106.72 | G10: 35847.18 | H10: 3728106.72 | I10: 0 | J10: 0 | K10: 0 | L10: 0 | M10: 0 | N10: 0 | O10: 3728106.72 | P10: 0 | Q10: 3728106.72
A11: 农科所 | B11: 83 | C11: 476.75 | D11: 49582 | E11: 0 | F11: 0 | G11: 476.75 | H11: 49582 | I11: 0 | J11: 0 | K11: 0 | L11: 0 | M11: 0 | N11: 0 | O11: 49582 | P11: 49582 | Q11: 0
A12: 合 计 | B12: =B5+B6+B7+B8+B9+B11 -> 35777 | C12: =SUM(C5:C11) -> 330514.38 | D12: 34373495.52 | E12: =SUM(E5:E11) -> 70748.55 | F12: 7357849.2 | G12: 401262.93 | H12: 41731344.72 | I12: =SUM(I5:I11) -> 42128.5 | J12: 5476705 | K12: =SUM(K5:K11) -> 6191.2 | L12: 804856 | M12: =SUM(M5:M11) -> 48319.7 | N12: 6281561 | O12: 48012905.72 | P12: 39850200.52 | Q12: 8162705.2
